[Event "Titled Tuesday Blitz August 31 2021"]
[White "Golubev, Mikhail"]
[Black "Krivonosov, Oleg"]
[WhiteFideId "14100983"]
[BlackFideId "11600349"]
[WhiteElo "2374"]
[BlackElo "2469"]
[Result "0-1"]
[Round "03"]
[TimeControl "180+1"]
[Date "2021.08.31"]
[WhiteClock "0:00:20"]
[BlackClock "0:00:37"]

1. e4 {[%clk 0:03:00]}  e5 {[%clk 0:02:59]} 2. Nf3 {[%clk 0:03:00]}  Nc6 {[%clk 0:02:58]} 3. Bb5 {[%clk 0:02:59]}  Nf6 {[%clk 0:02:57]} 4. O-O {[%clk 0:02:58]}  Nxe4 {[%clk 0:02:56]} 5. Re1 {[%clk 0:02:58]}  Nd6 {[%clk 0:02:55]} 6. Bf1 {[%clk 0:02:57]}  Be7 {[%clk 0:02:53]} 7. Nc3 {[%clk 0:02:55]}  O-O {[%clk 0:02:50]} 8. d4 {[%clk 0:02:54]}  e4 {[%clk 0:02:45]} 9. Nxe4 {[%clk 0:02:54]}  Nxe4 {[%clk 0:02:46]} 10. Rxe4 {[%clk 0:02:53]}  d5 {[%clk 0:02:46]} 11. Re1 {[%clk 0:02:53]}  Bg4 {[%clk 0:02:35]} 12. c3 {[%clk 0:02:48]}  Bd6 {[%clk 0:02:31]} 13. h3 {[%clk 0:02:43]}  Bh5 {[%clk 0:02:29]} 14. Bd3 {[%clk 0:02:42]}  Bg6 {[%clk 0:02:20]} 15. Bxg6 {[%clk 0:02:34]}  hxg6 {[%clk 0:02:21]} 16. Ng5 {[%clk 0:02:28]}  Be7 {[%clk 0:02:19]} 17. Qg4 {[%clk 0:02:20]}  Bxg5 {[%clk 0:02:17]} 18. Bxg5 {[%clk 0:02:20]}  Qc8 {[%clk 0:02:17]} 19. Bf4 {[%clk 0:02:04]}  Qxg4 {[%clk 0:02:13]} 20. hxg4 {[%clk 0:02:04]}  Rac8 {[%clk 0:02:11]} 21. Re3 {[%clk 0:01:59]}  f6 {[%clk 0:02:10]} 22. Rae1 {[%clk 0:01:58]}  g5 {[%clk 0:02:07]} 23. Bg3 {[%clk 0:01:56]}  Kf7 {[%clk 0:02:07]} 24. f3 {[%clk 0:01:55]}  Rfd8 {[%clk 0:02:06]} 25. b4 {[%clk 0:01:49]}  a6 {[%clk 0:02:04]} 26. a4 {[%clk 0:01:47]}  Rd7 {[%clk 0:02:04]} 27. b5 {[%clk 0:01:43]}  axb5 {[%clk 0:01:57]} 28. axb5 {[%clk 0:01:43]}  Na5 {[%clk 0:01:57]} 29. R3e2 {[%clk 0:01:37]}  b6 {[%clk 0:01:42]} 30. Re6 {[%clk 0:01:26]}  Nc4 {[%clk 0:01:37]} 31. Rc6 {[%clk 0:01:22]}  Na5 {[%clk 0:01:36]} 32. Rce6 {[%clk 0:01:21]}  Nc4 {[%clk 0:01:35]} 33. Rc6 {[%clk 0:01:21]}  Na3 {[%clk 0:01:12]} 34. Kf2 {[%clk 0:01:04]}  Nxb5 {[%clk 0:01:10]} 35. Re3 {[%clk 0:01:04]}  Re7 {[%clk 0:01:01]} 36. Ke2 {[%clk 0:00:51]}  Rxe3+ {[%clk 0:00:50]} 37. Kxe3 {[%clk 0:00:52]}  Re8+ {[%clk 0:00:44]} 38. Kd3 {[%clk 0:00:50]}  Re6 {[%clk 0:00:44]} 39. Rxe6 {[%clk 0:00:47]}  Kxe6 {[%clk 0:00:45]} 40. c4 {[%clk 0:00:47]}  dxc4+ {[%clk 0:00:44]} 41. Kxc4 {[%clk 0:00:47]}  Nd6+ {[%clk 0:00:44]} 42. Kd3 {[%clk 0:00:38]}  Kd5 {[%clk 0:00:43]} 43. Bf2 {[%clk 0:00:29]}  Nb5 {[%clk 0:00:42]} 44. Be3 {[%clk 0:00:28]}  c6 {[%clk 0:00:42]} 45. Bf2 {[%clk 0:00:28]}  Nc7 {[%clk 0:00:42]} 46. Be3 {[%clk 0:00:24]}  Ne6 {[%clk 0:00:42]} 47. g3 {[%clk 0:00:24]}  b5 {[%clk 0:00:39]} 48. Kc3 {[%clk 0:00:21]}  b4+ {[%clk 0:00:39]} 49. Kxb4 {[%clk 0:00:20]}  Nxd4 {[%clk 0:00:38]} 50. f4 {[%clk 0:00:20]}  Nc2+ {[%clk 0:00:37]} 0-1


[Site "https://www.chess.com"]

[Event "Titled Tuesday Blitz August 31 2021"]
[White "Grachev, Boris"]
[Black "Solovchuk, Oleksiy"]
[WhiteFideId "4129199"]
[BlackFideId "14115220"]
[WhiteElo "2580"]
[BlackElo "2376"]
[Result "1-0"]
[Round "03"]
[TimeControl "180+1"]
[Date "2021.08.31"]
[WhiteClock "0:01:01"]
[BlackClock "0:00:07"]

1. d4 {[%clk 0:03:00]}  d5 {[%clk 0:02:57]} 2. Bf4 {[%clk 0:03:01]}  e6 {[%clk 0:02:50]} 3. e3 {[%clk 0:03:01]}  Bd6 {[%clk 0:02:49]} 4. Nf3 {[%clk 0:03:01]}  Bxf4 {[%clk 0:02:47]} 5. exf4 {[%clk 0:03:01]}  c5 {[%clk 0:02:47]} 6. dxc5 {[%clk 0:03:00]}  Qa5+ {[%clk 0:02:47]} 7. Nbd2 {[%clk 0:03:00]}  Qxc5 {[%clk 0:02:47]} 8. Bd3 {[%clk 0:03:01]}  Nc6 {[%clk 0:02:44]} 9. c3 {[%clk 0:02:59]}  Nf6 {[%clk 0:02:44]} 10. O-O {[%clk 0:02:58]}  O-O {[%clk 0:02:42]} 11. Re1 {[%clk 0:02:57]}  Re8 {[%clk 0:02:41]} 12. Qe2 {[%clk 0:02:54]}  Qb6 {[%clk 0:02:39]} 13. Nb3 {[%clk 0:02:49]}  a5 {[%clk 0:02:37]} 14. Nbd4 {[%clk 0:02:49]}  Bd7 {[%clk 0:02:32]} 15. Rad1 {[%clk 0:02:46]}  Nxd4 {[%clk 0:02:20]} 16. Nxd4 {[%clk 0:02:45]}  a4 {[%clk 0:02:11]} 17. a3 {[%clk 0:02:45]}  g6 {[%clk 0:01:53]} 18. Rd2 {[%clk 0:02:40]}  Qc7 {[%clk 0:01:48]} 19. Qe5 {[%clk 0:02:33]}  Qxe5 {[%clk 0:01:41]} 20. fxe5 {[%clk 0:02:34]}  Ng4 {[%clk 0:01:41]} 21. h3 {[%clk 0:02:31]}  Nh6 {[%clk 0:01:40]} 22. g4 {[%clk 0:02:31]}  Kg7 {[%clk 0:01:40]} 23. f4 {[%clk 0:02:31]}  Re7 {[%clk 0:01:08]} 24. Rg2 {[%clk 0:02:27]}  Kh8 {[%clk 0:01:05]} 25. Kf2 {[%clk 0:02:23]}  Rae8 {[%clk 0:01:03]} 26. h4 {[%clk 0:02:14]}  Ng8 {[%clk 0:00:47]} 27. h5 {[%clk 0:02:14]}  Kg7 {[%clk 0:00:42]} 28. Rh1 {[%clk 0:02:12]}  f6 {[%clk 0:00:40]} 29. hxg6 {[%clk 0:02:08]}  hxg6 {[%clk 0:00:39]} 30. Rgh2 {[%clk 0:02:08]}  f5 {[%clk 0:00:22]} 31. gxf5 {[%clk 0:01:42]}  gxf5 {[%clk 0:00:23]} 32. Be2 {[%clk 0:01:35]}  Kf8 {[%clk 0:00:21]} 33. Ke3 {[%clk 0:01:20]}  Rg7 {[%clk 0:00:21]} 34. Nf3 {[%clk 0:01:07]}  Rc8 {[%clk 0:00:12]} 35. Rh8 {[%clk 0:01:02]}  Ke7 {[%clk 0:00:11]} 36. Ng5 {[%clk 0:01:02]}  Bc6 {[%clk 0:00:07]} 37. R1h7 {[%clk 0:01:01]} 1-0


[Site "https://www.chess.com"]

[Event "Titled Tuesday Blitz August 31 2021"]
[White "Gutenev, Alexander"]
[Black "Indjic, Aleksandar"]
[WhiteFideId "4195540"]
[BlackFideId "911925"]
[WhiteElo "2432"]
[BlackElo "2643"]
[Result "0-1"]
[Round "03"]
[TimeControl "180+1"]
[Date "2021.08.31"]
[WhiteClock "0:00:20"]
[BlackClock "0:00:52"]

1. e4 {[%clk 0:03:00]}  Nf6 {[%clk 0:02:59]} 2. e5 {[%clk 0:03:01]}  Nd5 {[%clk 0:02:59]} 3. d4 {[%clk 0:03:01]}  d6 {[%clk 0:02:58]} 4. c4 {[%clk 0:03:02]}  Nb6 {[%clk 0:02:57]} 5. exd6 {[%clk 0:03:03]}  exd6 {[%clk 0:02:56]} 6. Bd3 {[%clk 0:03:04]}  Be7 {[%clk 0:02:55]} 7. Ne2 {[%clk 0:03:04]}  Nc6 {[%clk 0:02:53]} 8. O-O {[%clk 0:03:04]}  O-O {[%clk 0:02:46]} 9. b3 {[%clk 0:03:03]}  a5 {[%clk 0:02:45]} 10. a4 {[%clk 0:02:59]}  Nb4 {[%clk 0:02:44]} 11. Nbc3 {[%clk 0:03:00]}  c6 {[%clk 0:02:42]} 12. Be3 {[%clk 0:02:53]}  d5 {[%clk 0:02:42]} 13. c5 {[%clk 0:02:50]}  Nd7 {[%clk 0:02:42]} 14. Ng3 {[%clk 0:02:44]}  Re8 {[%clk 0:02:31]} 15. Re1 {[%clk 0:02:44]}  Nf8 {[%clk 0:02:25]} 16. h3 {[%clk 0:02:41]}  g6 {[%clk 0:02:23]} 17. Bf1 {[%clk 0:02:31]}  Bf6 {[%clk 0:02:22]} 18. Na2 {[%clk 0:02:28]}  Nxa2 {[%clk 0:02:20]} 19. Rxa2 {[%clk 0:02:28]}  Bd7 {[%clk 0:02:20]} 20. Rd2 {[%clk 0:02:16]}  b6 {[%clk 0:02:20]} 21. Rc2 {[%clk 0:02:02]}  Ne6 {[%clk 0:02:17]} 22. Ne2 {[%clk 0:02:01]}  Qb8 {[%clk 0:02:14]} 23. cxb6 {[%clk 0:01:46]}  Qxb6 {[%clk 0:02:13]} 24. Rc3 {[%clk 0:01:46]}  Qb4 {[%clk 0:02:09]} 25. Rd3 {[%clk 0:01:45]}  Bc8 {[%clk 0:01:57]} 26. Bd2 {[%clk 0:01:44]}  Qb6 {[%clk 0:01:56]} 27. Bc3 {[%clk 0:01:42]}  Ba6 {[%clk 0:01:55]} 28. Rf3 {[%clk 0:01:42]}  Bg7 {[%clk 0:01:53]} 29. h4 {[%clk 0:01:42]}  h5 {[%clk 0:01:51]} 30. g3 {[%clk 0:01:36]}  Bxe2 {[%clk 0:01:49]} 31. Rxe2 {[%clk 0:01:35]}  Nxd4 {[%clk 0:01:48]} 32. Rxe8+ {[%clk 0:01:34]}  Rxe8 {[%clk 0:01:48]} 33. Bxd4 {[%clk 0:01:35]}  Bxd4 {[%clk 0:01:47]} 34. Kg2 {[%clk 0:01:35]}  Qc5 {[%clk 0:01:40]} 35. Bd3 {[%clk 0:01:35]}  Kg7 {[%clk 0:01:36]} 36. Rf4 {[%clk 0:01:30]}  Bf6 {[%clk 0:01:29]} 37. Qf3 {[%clk 0:01:26]}  Qc3 {[%clk 0:01:23]} 38. g4 {[%clk 0:01:20]}  hxg4 {[%clk 0:01:22]} 39. Rxg4 {[%clk 0:01:19]}  Rh8 {[%clk 0:01:21]} 40. Qg3 {[%clk 0:01:11]}  Rxh4 {[%clk 0:01:13]} 41. Rxh4 {[%clk 0:01:02]}  Bxh4 {[%clk 0:01:13]} 42. Qe3 {[%clk 0:01:00]}  Qxb3 {[%clk 0:01:06]} 43. Be2 {[%clk 0:00:32]}  Qxe3 {[%clk 0:01:03]} 44. fxe3 {[%clk 0:00:32]}  Kf6 {[%clk 0:01:03]} 45. Kf3 {[%clk 0:00:29]}  Ke5 {[%clk 0:01:02]} 46. Ba6 {[%clk 0:00:28]}  f5 {[%clk 0:01:01]} 47. Bb7 {[%clk 0:00:29]}  c5 {[%clk 0:01:01]} 48. Ke2 {[%clk 0:00:29]}  g5 {[%clk 0:01:00]} 49. Kd3 {[%clk 0:00:29]}  g4 {[%clk 0:01:00]} 50. Ke2 {[%clk 0:00:30]}  c4 {[%clk 0:00:59]} 51. Ba6 {[%clk 0:00:29]}  Bg5 {[%clk 0:00:59]} 52. Bb5 {[%clk 0:00:29]}  Ke4 {[%clk 0:00:58]} 53. Bd7 {[%clk 0:00:20]}  Bxe3 {[%clk 0:00:57]} 54. Be8 {[%clk 0:00:20]}  Bc5 {[%clk 0:00:52]} 0-1


[Site "https://www.chess.com"]

[Event "Titled Tuesday Blitz August 31 2021"]
[White "Hansen, Sune Berg"]
[Black "Sriniaiyer, Sudarshan"]
[WhiteFideId "1400266"]
[BlackFideId "30937213"]
[WhiteElo "2708"]
[BlackElo "2326"]
[Result "1-0"]
[Round "03"]
[TimeControl "180+1"]
[Date "2021.08.31"]
[WhiteClock "0:01:54"]
[BlackClock "0:00:40"]

1. e4 {[%clk 0:03:00]}  c5 {[%clk 0:02:59]} 2. Nc3 {[%clk 0:03:00]}  Nc6 {[%clk 0:02:59]} 3. Bb5 {[%clk 0:03:00]}  Nd4 {[%clk 0:02:59]} 4. Nf3 {[%clk 0:02:59]}  Nxb5 {[%clk 0:02:58]} 5. Nxb5 {[%clk 0:02:59]}  d6 {[%clk 0:02:56]} 6. d4 {[%clk 0:02:58]}  a6 {[%clk 0:02:56]} 7. Nc3 {[%clk 0:02:58]}  cxd4 {[%clk 0:02:56]} 8. Qxd4 {[%clk 0:02:58]}  e5 {[%clk 0:02:55]} 9. Qd3 {[%clk 0:02:58]}  Nf6 {[%clk 0:02:55]} 10. Bg5 {[%clk 0:02:57]}  Be6 {[%clk 0:02:50]} 11. Bxf6 {[%clk 0:02:55]}  gxf6 {[%clk 0:02:50]} 12. O-O {[%clk 0:02:48]}  b5 {[%clk 0:02:42]} 13. Nd5 {[%clk 0:02:47]}  Bg7 {[%clk 0:02:32]} 14. Nh4 {[%clk 0:02:45]}  Rc8 {[%clk 0:02:18]} 15. c3 {[%clk 0:02:36]}  f5 {[%clk 0:01:25]} 16. Nxf5 {[%clk 0:02:34]}  Bxf5 {[%clk 0:01:25]} 17. exf5 {[%clk 0:02:34]}  O-O {[%clk 0:01:25]} 18. Rad1 {[%clk 0:02:21]}  Rc4 {[%clk 0:01:19]} 19. Rfe1 {[%clk 0:02:16]}  Qg5 {[%clk 0:01:08]} 20. g3 {[%clk 0:02:08]}  h5 {[%clk 0:01:06]} 21. Ne3 {[%clk 0:02:07]}  Rc6 {[%clk 0:01:05]} 22. h4 {[%clk 0:02:07]}  Qd8 {[%clk 0:00:58]} 23. Qe2 {[%clk 0:02:07]}  Qf6 {[%clk 0:00:45]} 24. Qxh5 {[%clk 0:02:04]}  Qh6 {[%clk 0:00:45]} 25. Qxh6 {[%clk 0:01:58]}  Bxh6 {[%clk 0:00:46]} 26. Nd5 {[%clk 0:01:58]}  Rc4 {[%clk 0:00:41]} 27. Ne7+ {[%clk 0:01:55]}  Kg7 {[%clk 0:00:40]} 28. Rxd6 {[%clk 0:01:54]} 1-0


[Site "https://www.chess.com"]

[Event "Titled Tuesday Blitz August 31 2021"]
[White "Harshavardhan G B"]
[Black "Visakh N R"]
[WhiteFideId "25059009"]
[BlackFideId "25012223"]
[WhiteElo "1825"]
[BlackElo "2428"]
[Result "0-1"]
[Round "03"]
[TimeControl "180+1"]
[Date "2021.08.31"]
[WhiteClock "0:00:03"]
[BlackClock "0:00:13"]

1. b3 {[%clk 0:03:00]}  b6 {[%clk 0:02:57]} 2. Bb2 {[%clk 0:03:01]}  Bb7 {[%clk 0:02:57]} 3. Nf3 {[%clk 0:02:54]}  d6 {[%clk 0:02:52]} 4. g3 {[%clk 0:02:54]}  e5 {[%clk 0:02:50]} 5. d3 {[%clk 0:02:54]}  g6 {[%clk 0:02:47]} 6. Bg2 {[%clk 0:02:54]}  Bg7 {[%clk 0:02:47]} 7. Nbd2 {[%clk 0:02:54]}  Ne7 {[%clk 0:02:46]} 8. e4 {[%clk 0:02:53]}  O-O {[%clk 0:02:46]} 9. O-O {[%clk 0:02:52]}  h6 {[%clk 0:02:44]} 10. Nh4 {[%clk 0:02:48]}  g5 {[%clk 0:02:36]} 11. Nf5 {[%clk 0:02:38]}  Nxf5 {[%clk 0:02:35]} 12. exf5 {[%clk 0:02:39]}  Bxg2 {[%clk 0:02:35]} 13. Kxg2 {[%clk 0:02:40]}  Nd7 {[%clk 0:02:33]} 14. c4 {[%clk 0:02:36]}  d5 {[%clk 0:02:29]} 15. Qe2 {[%clk 0:02:31]}  Re8 {[%clk 0:02:26]} 16. Rfe1 {[%clk 0:02:26]}  Nc5 {[%clk 0:02:22]} 17. Rad1 {[%clk 0:02:22]}  Qd7 {[%clk 0:02:22]} 18. Ba3 {[%clk 0:01:34]}  Qxf5 {[%clk 0:02:01]} 19. Bxc5 {[%clk 0:01:33]}  bxc5 {[%clk 0:02:02]} 20. cxd5 {[%clk 0:01:33]}  Rad8 {[%clk 0:02:02]} 21. Ne4 {[%clk 0:01:18]}  Qd7 {[%clk 0:01:58]} 22. Rc1 {[%clk 0:01:16]}  f5 {[%clk 0:01:47]} 23. Nc3 {[%clk 0:01:13]}  Rf8 {[%clk 0:01:18]} 24. Qe3 {[%clk 0:01:00]}  f4 {[%clk 0:01:16]} 25. Qxc5 {[%clk 0:01:00]}  Qf7 {[%clk 0:00:54]} 26. Ne4 {[%clk 0:00:36]}  Rd7 {[%clk 0:00:49]} 27. d6 {[%clk 0:00:26]}  cxd6 {[%clk 0:00:46]} 28. Nxd6 {[%clk 0:00:26]}  Qh5 {[%clk 0:00:44]} 29. Ne4 {[%clk 0:00:19]}  Rdf7 {[%clk 0:00:42]} 30. Qd5 {[%clk 0:00:17]}  Kh8 {[%clk 0:00:41]} 31. Qc5 {[%clk 0:00:11]}  g4 {[%clk 0:00:36]} 32. Kh1 {[%clk 0:00:10]}  Qh3 {[%clk 0:00:20]} 33. Rg1 {[%clk 0:00:09]}  Rf5 {[%clk 0:00:19]} 34. Qxa7 {[%clk 0:00:09]}  Rh5 {[%clk 0:00:18]} 35. Rg2 {[%clk 0:00:07]}  f3 {[%clk 0:00:18]} 36. Rcg1 {[%clk 0:00:08]}  fxg2+ {[%clk 0:00:18]} 37. Rxg2 {[%clk 0:00:09]}  Rhf5 {[%clk 0:00:19]} 38. a4 {[%clk 0:00:08]}  R5f7 {[%clk 0:00:18]} 39. Qc5 {[%clk 0:00:07]}  Qh5 {[%clk 0:00:17]} 40. a5 {[%clk 0:00:07]}  Qf5 {[%clk 0:00:17]} 41. a6 {[%clk 0:00:07]}  Qf3 {[%clk 0:00:17]} 42. Qc1 {[%clk 0:00:05]}  Qxd3 {[%clk 0:00:16]} 43. Nc5 {[%clk 0:00:03]}  Qd5 {[%clk 0:00:15]} 44. a7 {[%clk 0:00:02]}  Rxa7 {[%clk 0:00:15]} 45. b4 {[%clk 0:00:03]}  Rfa8 {[%clk 0:00:13]} 0-1


[Site "https://www.chess.com"]

[Event "Titled Tuesday Blitz August 31 2021"]
[White "Ibrahimli, Murad"]
[Black "Mitrabha, Guha"]
[WhiteFideId "13410229"]
[BlackFideId "5057000"]
[WhiteElo "2109"]
[BlackElo "2334"]
[Result "1-0"]
[Round "03"]
[TimeControl "180+1"]
[Date "2021.08.31"]
[WhiteClock "0:01:48"]
[BlackClock "0:01:27"]

1. Nf3 {[%clk 0:03:00]}  d5 {[%clk 0:02:57]} 2. d4 {[%clk 0:03:00]}  c6 {[%clk 0:02:58]} 3. Bf4 {[%clk 0:02:56]}  Bg4 {[%clk 0:02:57]} 4. Ne5 {[%clk 0:02:54]}  Bh5 {[%clk 0:02:57]} 5. g4 {[%clk 0:02:52]}  Bg6 {[%clk 0:02:57]} 6. h4 {[%clk 0:02:52]}  f6 {[%clk 0:02:56]} 7. Nxg6 {[%clk 0:02:51]}  hxg6 {[%clk 0:02:57]} 8. Qd3 {[%clk 0:02:49]}  Kf7 {[%clk 0:02:55]} 9. h5 {[%clk 0:02:49]}  gxh5 {[%clk 0:02:35]} 10. gxh5 {[%clk 0:02:48]}  e6 {[%clk 0:02:34]} 11. Qg6+ {[%clk 0:02:44]}  Ke7 {[%clk 0:02:34]} 12. Nc3 {[%clk 0:02:38]}  Nd7 {[%clk 0:02:33]} 13. O-O-O {[%clk 0:02:38]}  Nh6 {[%clk 0:02:31]} 14. e4 {[%clk 0:02:37]}  Qe8 {[%clk 0:02:26]} 15. exd5 {[%clk 0:02:34]}  Qxg6 {[%clk 0:02:14]} 16. d6+ {[%clk 0:02:34]}  Kd8 {[%clk 0:02:14]} 17. hxg6 {[%clk 0:02:34]}  Nb6 {[%clk 0:02:15]} 18. Re1 {[%clk 0:02:04]}  Nd5 {[%clk 0:01:40]} 19. Nxd5 {[%clk 0:01:49]}  exd5 {[%clk 0:01:41]} 20. Bh3 {[%clk 0:01:49]}  f5 {[%clk 0:01:27]} 21. Bxf5 {[%clk 0:01:48]} 1-0


[Site "https://www.chess.com"]

[Event "Titled Tuesday Blitz August 31 2021"]
[White "Ismagilov, Damir"]
[Black "Pichot, Alan"]
[WhiteFideId "34199982"]
[BlackFideId "110973"]
[WhiteElo "2075"]
[BlackElo "2622"]
[Result "0-1"]
[Round "03"]
[TimeControl "180+1"]
[Date "2021.08.31"]
[WhiteClock "0:00:31"]
[BlackClock "0:01:16"]

1. d4 {[%clk 0:03:00]}  d5 {[%clk 0:02:59]} 2. Bf4 {[%clk 0:02:59]}  Nf6 {[%clk 0:02:58]} 3. e3 {[%clk 0:02:58]}  c5 {[%clk 0:02:58]} 4. c3 {[%clk 0:02:57]}  cxd4 {[%clk 0:02:57]} 5. exd4 {[%clk 0:02:56]}  Nc6 {[%clk 0:02:58]} 6. Nd2 {[%clk 0:02:54]}  Bf5 {[%clk 0:02:58]} 7. Qb3 {[%clk 0:02:52]}  Qc8 {[%clk 0:02:57]} 8. Ngf3 {[%clk 0:02:51]}  e6 {[%clk 0:02:57]} 9. Nh4 {[%clk 0:02:46]}  Bg6 {[%clk 0:02:52]} 10. Nxg6 {[%clk 0:02:44]}  hxg6 {[%clk 0:02:53]} 11. h3 {[%clk 0:02:41]}  Be7 {[%clk 0:02:51]} 12. Bd3 {[%clk 0:02:37]}  O-O {[%clk 0:02:52]} 13. O-O {[%clk 0:02:20]}  Qd7 {[%clk 0:02:52]} 14. Rfe1 {[%clk 0:02:18]}  Bd6 {[%clk 0:02:52]} 15. Be5 {[%clk 0:02:12]}  Rfc8 {[%clk 0:02:47]} 16. Nf3 {[%clk 0:02:03]}  Bf8 {[%clk 0:02:43]} 17. Bxf6 {[%clk 0:01:45]}  gxf6 {[%clk 0:02:43]} 18. Qc2 {[%clk 0:01:42]}  Nb4 {[%clk 0:02:41]} 19. Qe2 {[%clk 0:01:41]}  Nxd3 {[%clk 0:02:41]} 20. Qxd3 {[%clk 0:01:42]}  b5 {[%clk 0:02:42]} 21. Rac1 {[%clk 0:01:36]}  a5 {[%clk 0:02:23]} 22. Rc2 {[%clk 0:01:33]}  Rc7 {[%clk 0:02:16]} 23. a3 {[%clk 0:01:31]}  Rac8 {[%clk 0:02:11]} 24. Rec1 {[%clk 0:01:23]}  Bh6 {[%clk 0:02:02]} 25. Nd2 {[%clk 0:01:22]}  Qc6 {[%clk 0:01:52]} 26. b4 {[%clk 0:01:14]}  axb4 {[%clk 0:01:34]} 27. axb4 {[%clk 0:01:15]}  Ra8 {[%clk 0:01:29]} 28. Rb1 {[%clk 0:01:11]}  Ra3 {[%clk 0:01:18]} 29. Nb3 {[%clk 0:01:09]}  Qc4 {[%clk 0:01:18]} 30. Qxc4 {[%clk 0:01:02]}  Rxc4 {[%clk 0:01:19]} 31. Kf1 {[%clk 0:01:00]}  Bf8 {[%clk 0:01:19]} 32. Ra1 {[%clk 0:00:34]}  Rxb3 {[%clk 0:01:17]} 33. Rb2 {[%clk 0:00:31]}  Rxb2 {[%clk 0:01:16]} 0-1


[Site "https://www.chess.com"]

[Event "Titled Tuesday Blitz August 31 2021"]
[White "Jarovinsky, Alexey"]
[Black "Suvorov, Luca"]
[WhiteFideId "14115131"]
[BlackFideId "12977071"]
[WhiteElo "2446"]
[BlackElo "2127"]
[Result "1-0"]
[Round "03"]
[TimeControl "180+1"]
[Date "2021.08.31"]
[WhiteClock "0:00:42"]
[BlackClock "0:00:02"]

1. Nc3 {[%clk 0:02:49]}  d5 {[%clk 0:02:53]} 2. e4 {[%clk 0:02:48]}  d4 {[%clk 0:02:52]} 3. Nce2 {[%clk 0:02:47]}  c5 {[%clk 0:02:51]} 4. Ng3 {[%clk 0:02:44]}  e5 {[%clk 0:02:49]} 5. Bc4 {[%clk 0:02:43]}  a6 {[%clk 0:02:41]} 6. d3 {[%clk 0:02:41]}  b5 {[%clk 0:02:22]} 7. Bd5 {[%clk 0:02:23]}  Ra7 {[%clk 0:02:21]} 8. a4 {[%clk 0:02:23]}  Rd7 {[%clk 0:02:05]} 9. axb5 {[%clk 0:02:21]}  axb5 {[%clk 0:02:04]} 10. Ra8 {[%clk 0:02:18]}  Bb7 {[%clk 0:02:04]} 11. Bxb7 {[%clk 0:02:16]}  Rxb7 {[%clk 0:02:05]} 12. f4 {[%clk 0:02:12]}  g6 {[%clk 0:01:10]} 13. Nf3 {[%clk 0:02:07]}  Bg7 {[%clk 0:01:08]} 14. Nxe5 {[%clk 0:01:50]}  Bxe5 {[%clk 0:01:07]} 15. fxe5 {[%clk 0:01:51]}  h5 {[%clk 0:00:37]} 16. O-O {[%clk 0:01:46]}  h4 {[%clk 0:00:36]} 17. Ne2 {[%clk 0:01:44]}  Ne7 {[%clk 0:00:29]} 18. Bg5 {[%clk 0:01:38]}  Rh5 {[%clk 0:00:23]} 19. Bf6 {[%clk 0:01:35]}  Qc7 {[%clk 0:00:18]} 20. Nf4 {[%clk 0:01:31]}  Rh7 {[%clk 0:00:15]} 21. Nd5 {[%clk 0:01:24]}  Nxd5 {[%clk 0:00:08]} 22. exd5 {[%clk 0:01:25]}  Ra7 {[%clk 0:00:08]} 23. Rxa7 {[%clk 0:01:10]}  Qxa7 {[%clk 0:00:09]} 24. e6 {[%clk 0:01:09]}  Qb7 {[%clk 0:00:08]} 25. Qg4 {[%clk 0:00:59]}  Qxd5 {[%clk 0:00:03]} 26. exf7+ {[%clk 0:00:59]}  Kxf7 {[%clk 0:00:03]} 27. Be5+ {[%clk 0:00:56]}  Ke7 {[%clk 0:00:02]} 28. Qxg6 {[%clk 0:00:42]}  h3 {[%clk 0:00:02]} 1-0


[Site "https://www.chess.com"]

[Event "Titled Tuesday Blitz August 31 2021"]
[White "Khoroshev, Nikita"]
[Black "Kuzubov, Yuriy"]
[WhiteFideId "14200287"]
[BlackFideId "14112906"]
[WhiteElo "2328"]
[BlackElo "2564"]
[Result "0-1"]
[Round "03"]
[TimeControl "180+1"]
[Date "2021.08.31"]
[WhiteClock "0:00:04"]
[BlackClock "0:00:06"]

1. d4 {[%clk 0:03:00]}  Nf6 {[%clk 0:02:59]} 2. Nf3 {[%clk 0:03:00]}  e6 {[%clk 0:02:59]} 3. Bf4 {[%clk 0:02:59]}  c5 {[%clk 0:02:57]} 4. e3 {[%clk 0:02:46]}  Nc6 {[%clk 0:02:57]} 5. c3 {[%clk 0:02:44]}  Nh5 {[%clk 0:02:50]} 6. Bg5 {[%clk 0:02:31]}  Qb6 {[%clk 0:02:49]} 7. b3 {[%clk 0:02:16]}  h6 {[%clk 0:02:45]} 8. Bh4 {[%clk 0:02:14]}  g5 {[%clk 0:02:41]} 9. Bg3 {[%clk 0:02:14]}  Nxg3 {[%clk 0:02:39]} 10. hxg3 {[%clk 0:02:15]}  Bg7 {[%clk 0:02:39]} 11. Nbd2 {[%clk 0:02:13]}  d5 {[%clk 0:02:37]} 12. Bd3 {[%clk 0:02:11]}  Bd7 {[%clk 0:02:30]} 13. Rc1 {[%clk 0:02:09]}  cxd4 {[%clk 0:02:24]} 14. exd4 {[%clk 0:01:53]}  g4 {[%clk 0:02:21]} 15. Nh4 {[%clk 0:01:43]}  h5 {[%clk 0:02:20]} 16. f3 {[%clk 0:01:19]}  e5 {[%clk 0:02:03]} 17. Bf5 {[%clk 0:00:59]}  O-O-O {[%clk 0:02:01]} 18. Bxd7+ {[%clk 0:00:46]}  Rxd7 {[%clk 0:02:01]} 19. Nf5 {[%clk 0:00:46]}  Bf6 {[%clk 0:01:42]} 20. c4 {[%clk 0:00:27]}  Kb8 {[%clk 0:01:23]} 21. cxd5 {[%clk 0:00:21]}  Rxd5 {[%clk 0:01:22]} 22. Ne4 {[%clk 0:00:20]}  Be7 {[%clk 0:01:11]} 23. fxg4 {[%clk 0:00:17]}  exd4 {[%clk 0:01:03]} 24. Nxe7 {[%clk 0:00:14]}  Nxe7 {[%clk 0:00:54]} 25. Qf3 {[%clk 0:00:15]}  d3 {[%clk 0:00:48]} 26. Kd1 {[%clk 0:00:15]}  Qa5 {[%clk 0:00:30]} 27. a4 {[%clk 0:00:14]}  Qb4 {[%clk 0:00:28]} 28. Qf4+ {[%clk 0:00:13]}  Ka8 {[%clk 0:00:27]} 29. Nd2 {[%clk 0:00:12]}  Rd4 {[%clk 0:00:17]} 30. Qf6 {[%clk 0:00:11]}  Rhd8 {[%clk 0:00:14]} 31. Rxh5 {[%clk 0:00:11]}  Nc6 {[%clk 0:00:11]} 32. Rxc6 {[%clk 0:00:09]}  bxc6 {[%clk 0:00:11]} 33. Qxc6+ {[%clk 0:00:10]}  Qb7 {[%clk 0:00:11]} 34. Qxb7+ {[%clk 0:00:07]}  Kxb7 {[%clk 0:00:12]} 35. Rf5 {[%clk 0:00:08]}  R8d7 {[%clk 0:00:12]} 36. g5 {[%clk 0:00:07]}  Rg4 {[%clk 0:00:11]} 37. Nf1 {[%clk 0:00:08]}  Kc7 {[%clk 0:00:10]} 38. Kd2 {[%clk 0:00:08]}  Rb4 {[%clk 0:00:09]} 39. Kc3 {[%clk 0:00:08]}  Rg4 {[%clk 0:00:08]} 40. Kd2 {[%clk 0:00:07]}  Kd8 {[%clk 0:00:08]} 41. a5 {[%clk 0:00:07]}  Ke8 {[%clk 0:00:07]} 42. Rb5 {[%clk 0:00:05]}  Kf8 {[%clk 0:00:07]} 43. a6 {[%clk 0:00:05]}  Re4 {[%clk 0:00:05]} 44. Ne3 {[%clk 0:00:03]}  Rxe3 {[%clk 0:00:05]} 45. Kxe3 {[%clk 0:00:04]}  d2 {[%clk 0:00:06]} 0-1


[Site "https://www.chess.com"]